Workbook

Sheet Sheet1
A1: 附件：
A2: 江油市2023年上半年公开招聘教师考试总成绩及进入体检人员名单
A3: 序号 | B3: 报考单位 | C3: 报考职位 | D3: 招聘 人数 | E3: 职位编号 | F3: 准考证号 | G3: 姓名 | H3: 笔试成绩 | I3: 笔试折合 总成绩 （含加分） | J3: 面试成绩 | K3: 折合后面试成绩 | L3: 总成绩 | M3: 名次 | N3: 是否进入体检 | O3: 备注
A4: 1 | B4: 高中 | C4: 语文教师 | D4: 1 | E4: 23040401 | F4: 2304060302113 | G4: 羊静 | H4: 70.75 | I4: 35.375 | J4: 86.81 | K4: =J4*0.5 -> 43.405 | L4: =K4+I4 -> 78.78 | M4: 1 | N4: 是
A5: 3 | B5: 高中 | C5: 语文教师 | D5: 1 | E5: 23040401 | F5: 2304060302816 | G5: 何春梅 | H5: 68.75 | I5: 34.375 | J5: 84.31 | K5: =J5*0.5 -> 42.155 | L5: =K5+I5 -> 76.53 | M5: 2 | N5: 否
A6: 2 | B6: 高中 | C6: 语文教师 | D6: 1 | E6: 23040401 | F6: 2304060301119 | G6: 吴若冰 | H6: 68.75 | I6: 34.375 | J6: 83.336 | K6: 41.668 | L6: 76.043 | M6: 3 | N6: 否
A7: 4 | B7: 高中 | C7: 数学教师 | D7: 2 | E7: 23040402 | F7: 2304060302718 | G7: 罗玄 | H7: 73.25 | I7: 36.625 | J7: 81.812 | K7: 40.906 | L7: 77.531 | M7: 1 | N7: 是
A8: 6 | B8: 高中 | C8: 数学教师 | D8: 2 | E8: 23040402 | F8: 2304060401030 | G8: 李有为 | H8: 66.5 | I8: 33.25 | J8: 84.382 | K8: 42.191 | L8: 75.441 | M8: 2 | N8: 是
A9: 9 | B9: 高中 | C9: 数学教师 | D9: 2 | E9: 23040402 | F9: 2304060400704 | G9: 雷钦浩 | H9: 64.75 | I9: 32.375 | J9: 80.696 | K9: 40.348 | L9: 72.723 | M9: 3 | N9: 否 | O9: 递补
A10: 8 | B10: 高中 | C10: 数学教师 | D10: 2 | E10: 23040402 | F10: 2304060300810 | G10: 吴鑫 | H10: 65 | I10: 32.5 | J10: 77.826 | K10: 38.913 | L10: 71.413 | M10: 4 | N10: 否
A11: 7 | B11: 高中 | C11: 数学教师 | D11: 2 | E11: 23040402 | F11: 2304060400224 | G11: 胥诗祺 | H11: 65.5 | I11: 32.75 | J11: 76.046 | K11: 38.023 | L11: 70.773 | M11: 5 | N11: 否
A12: 5 | B12: 高中 | C12: 数学教师 | D12: 2 | E12: 23040402 | F12: 2304060400928 | G12: 李韬 | H12: 66.5 | I12: 33.25 | J12: 0 | K12: 0 | L12: 33.25 | M12: 6 | N12: 否 | O12: 放弃面试
A13: 10 | B13: 高中 | C13: 英语教师 | D13: 2 | E13: 23040403 | F13: 2304060400122 | G13: 蒋晓艳 | H13: 72.25 | I13: 36.125 | J13: 83.99 | K13: 41.995 | L13: 78.12 | M13: 1 | N13: 是
A14: 14 | B14: 高中 | C14: 英语教师 | D14: 2 | E14: 23040403 | F14: 2304060400811 | G14: 李鑫 | H14: 68.75 | I14: 34.375 | J14: 85.484 | K14: 42.742 | L14: 77.117 | M14: 2 | N14: 是
A15: 11 | B15: 高中 | C15: 英语教师 | D15: 2 | E15: 23040403 | F15: 2304060400427 | G15: 何欣窈 | H15: 71.75 | I15: 35.875 | J15: 78.46 | K15: 39.23 | L15: 75.105 | M15: 3 | N15: 否
A16: 15 | B16: 高中 | C16: 英语教师 | D16: 2 | E16: 23040403 | F16: 2304060400719 | G16: 文晨 | H16: 68.5 | I16: 34.25 | J16: 81.576 | K16: 40.788 | L16: 75.038 | M16: 4 | N16: 否
A17: 12 | B17: 高中 | C17: 英语教师 | D17: 2 | E17: 23040403 | F17: 2304060301409 | G17: 刘俊妍 | H17: 71 | I17: 35.5 | J17: 76.134 | K17: 38.067 | L17: 73.567 | M17: 5 | N17: 否
A18: 13 | B18: 高中 | C18: 英语教师 | D18: 2 | E18: 23040403 | F18: 2304060302511 | G18: 朱凡 | H18: 70 | I18: 35 | J18: 74.052 | K18: 37.026 | L18: 72.026 | M18: 6 | N18: 否
A19: 16 | B19: 高中 | C19: 物理教师 | D19: 1 | E19: 23040404 | F19: 2304060302402 | G19: 卜晓涵 | H19: 71 | I19: 35.5 | J19: 85.126 | K19: 42.563 | L19: 78.063 | M19: 1 | N19: 是
A20: 18 | B20: 高中 | C20: 物理教师 | D20: 1 | E20: 23040404 | F20: 2304060302203 | G20: 何柳静 | H20: 68 | I20: 34 | J20: 82.886 | K20: 41.443 | L20: 75.443 | M20: 2 | N20: 否
A21: 17 | B21: 高中 | C21: 物理教师 | D21: 1 | E21: 23040404 | F21: 2304060401203 | G21: 肖倩 | H21: 68.75 | I21: 34.375 | J21: 80.096 | K21: 40.048 | L21: 74.423 | M21: 3 | N21: 否
A22: 20 | B22: 高中 | C22: 化学教师 | D22: 1 | E22: 23040405 | F22: 2304060303028 | G22: 胡昊阳 | H22: 69.25 | I22: 34.625 | J22: 84.866 | K22: 42.433 | L22: 77.058 | M22: 1 | N22: 是
A23: 19 | B23: 高中 | C23: 化学教师 | D23: 1 | E23: 23040405 | F23: 2304060301613 | G23: 蒋晋 | H23: 72 | I23: 36 | J23: 80.1 | K23: 40.05 | L23: 76.05 | M23: 2 | N23: 否
A24: 21 | B24: 高中 | C24: 化学教师 | D24: 1 | E24: 23040405 | F24: 2304060302810 | G24: 王梦佳 | H24: 68.5 | I24: 34.25 | J24: 73.82 | K24: 36.91 | L24: 71.16 | M24: 3 | N24: 否
A25: 23 | B25: 高中 | C25: 历史教师 | D25: 1 | E25: 23040406 | F25: 2304060303102 | G25: 石民洋 | H25: 70.75 | I25: 35.375 | J25: 85.46 | K25: 42.73 | L25: 78.105 | M25: 1 | N25: 是
A26: 24 | B26: 高中 | C26: 历史教师 | D26: 1 | E26: 23040406 | F26: 2304060300930 | G26: 李梅 | H26: 67.75 | I26: 33.875 | J26: 86.342 | K26: 43.171 | L26: 77.046 | M26: 2 | N26: 否
A27: 22 | B27: 高中 | C27: 历史教师 | D27: 1 | E27: 23040406 | F27: 2304060303230 | G27: 唐晓成 | H27: 71.5 | I27: 35.75 | J27: 80.866 | K27: 40.433 | L27: 76.183 | M27: 3 | N27: 否
A28: 25 | B28: 城区幼儿园 | C28: 幼儿园教师 | D28: 6 | E28: 23040407 | F28: 2304060401230 | G28: 王曼宇 | H28: 68.5 | I28: 34.25 | J28: 87.14 | K28: 43.57 | L28: 77.82 | M28: 1 | N28: 是
A29: 29 | B29: 城区幼儿园 | C29: 幼儿园教师 | D29: 6 | E29: 23040407 | F29: 2304060400923 | G29: 邹家钰 | H29: 66.25 | I29: 33.125 | J29: 83.81 | K29: 41.905 | L29: 75.03 | M29: 2 | N29: 是
A30: 26 | B30: 城区幼儿园 | C30: 幼儿园教师 | D30: 6 | E30: 23040407 | F30: 2304060300927 | G30: 张冬梅 | H30: 67.75 | I30: 33.875 | J30: 80.99 | K30: 40.495 | L30: 74.37 | M30: 3 | N30: 是
A31: 30 | B31: 城区幼儿园 | C31: 幼儿园教师 | D31: 6 | E31: 23040407 | F31: 2304060303621 | G31: 王妃 | H31: 65.5 | I31: 32.75 | J31: 82.37 | K31: 41.185 | L31: 73.935 | M31: 4 | N31: 是
A32: 32 | B32: 城区幼儿园 | C32: 幼儿园教师 | D32: 6 | E32: 23040407 | F32: 2304060301618 | G32: 李晨菲 | H32: 63.75 | I32: 31.875 | J32: 83.73 | K32: 41.865 | L32: 73.74 | M32: 5 | N32: 是
A33: 28 | B33: 城区幼儿园 | C33: 幼儿园教师 | D33: 6 | E33: 23040407 | F33: 2304060303301 | G33: 李静 | H33: 66.75 | I33: 33.375 | J33: 79.39 | K33: 39.695 | L33: 73.07 | M33: 6 | N33: 是
A34: 27 | B34: 城区幼儿园 | C34: 幼儿园教师 | D34: 6 | E34: 23040407 | F34: 2304060400202 | G34: 李佳怡 | H34: 67 | I34: 33.5 | J34: 78.41 | K34: 39.205 | L34: 72.705 | M34: 7 | N34: 否
A35: 41 | B35: 城区幼儿园 | C35: 幼儿园教师 | D35: 6 | E35: 23040407 | F35: 2304060401011 | G35: 王心雨 | H35: 61.25 | I35: 30.625 | J35: 84.07 | K35: 42.035 | L35: 72.66 | M35: 8 | N35: 否
A36: 42 | B36: 城区幼儿园 | C36: 幼儿园教师 | D36: 6 | E36: 23040407 | F36: 2304060401225 | G36: 陈梦婷 | H36: 61.25 | I36: 30.625 | J36: 84.03 | K36: 42.015 | L36: 72.64 | M36: 9 | N36: 否
A37: 37 | B37: 城区幼儿园 | C37: 幼儿园教师 | D37: 6 | E37: 23040407 | F37: 2304060400111 | G37: 雷婷婷 | H37: 62 | I37: 31 | J37: 83.07 | K37: 41.535 | L37: 72.535 | M37: 10 | N37: 否
A38: 40 | B38: 城区幼儿园 | C38: 幼儿园教师 | D38: 6 | E38: 23040407 | F38: 2304060400904 | G38: 李枚芝 | H38: 61.25 | I38: 30.625 | J38: 83.15 | K38: 41.575 | L38: 72.2 | M38: 11 | N38: 否
A39: 33 | B39: 城区幼儿园 | C39: 幼儿园教师 | D39: 6 | E39: 23040407 | F39: 2304060300814 | G39: 李佳 | H39: 63.5 | I39: 31.75 | J39: 79.25 | K39: 39.625 | L39: 71.375 | M39: 12 | N39: 否
A40: 34 | B40: 城区幼儿园 | C40: 幼儿园教师 | D40: 6 | E40: 23040407 | F40: 2304060302615 | G40: 郭翠香 | H40: 62.75 | I40: 31.375 | J40: 78.97 | K40: 39.485 | L40: 70.86 | M40: 13 | N40: 否
A41: 36 | B41: 城区幼儿园 | C41: 幼儿园教师 | D41: 6 | E41: 23040407 | F41: 2304060302726 | G41: 杨婧文 | H41: 62.5 | I41: 31.25 | J41: 79.2 | K41: 39.6 | L41: 70.85 | M41: 14 | N41: 否
A42: 31 | B42: 城区幼儿园 | C42: 幼儿园教师 | D42: 6 | E42: 23040407 | F42: 2304060303421 | G42: 徐香巧 | H42: 64 | I42: 32 | J42: 77.38 | K42: 38.69 | L42: 70.69 | M42: 15 | N42: 否
A43: 38 | B43: 城区幼儿园 | C43: 幼儿园教师 | D43: 6 | E43: 23040407 | F43: 2304060300627 | G43: 王媛媛 | H43: 61.75 | I43: 30.875 | J43: 78.83 | K43: 39.415 | L43: 70.29 | M43: 16 | N43: 否
A44: 35 | B44: 城区幼儿园 | C44: 幼儿园教师 | D44: 6 | E44: 23040407 | F44: 2304060400222 | G44: 罗婷婷 | H44: 62.75 | I44: 31.375 | J44: 75.29 | K44: 37.645 | L44: 69.02 | M44: 17 | N44: 否
A45: 39 | B45: 城区幼儿园 | C45: 幼儿园教师 | D45: 6 | E45: 23040407 | F45: 2304060303515 | G45: 方文琪 | H45: 61.75 | I45: 30.875 | J45: 74.45 | K45: 37.225 | L45: 68.1 | M45: 18 | N45: 否
A46: 43 | B46: 城区初中（含一贯制学校初中阶段） | C46: 语文教师 | D46: 6 | E46: 23040408 | F46: 2304060300513 | G46: 蒋欣芮 | H46: 75 | I46: 37.5 | J46: 84.944 | K46: 42.472 | L46: 79.972 | M46: 1 | N46: 是
A47: 44 | B47: 城区初中（含一贯制学校初中阶段） | C47: 语文教师 | D47: 6 | E47: 23040408 | F47: 2304060301607 | G47: 刘璐 | H47: 70.75 | I47: 35.375 | J47: 85.548 | K47: 42.774 | L47: 78.149 | M47: 2 | N47: 是
A48: 45 | B48: 城区初中（含一贯制学校初中阶段） | C48: 语文教师 | D48: 6 | E48: 23040408 | F48: 2304060401025 | G48: 陈铃涵 | H48: 69.75 | I48: 34.875 | J48: 84.374 | K48: 42.187 | L48: 77.062 | M48: 3 | N48: 是
A49: 49 | B49: 城区初中（含一贯制学校初中阶段） | C49: 语文教师 | D49: 6 | E49: 23040408 | F49: 2304060302728 | G49: 程宇倩 | H49: 66.25 | I49: 33.125 | J49: 87.16 | K49: 43.58 | L49: 76.705 | M49: 4 | N49: 是
A50: 46 | B50: 城区初中（含一贯制学校初中阶段） | C50: 语文教师 | D50: 6 | E50: 23040408 | F50: 2304060303318 | G50: 杜诗怡 | H50: 69 | I50: 34.5 | J50: 83.528 | K50: 41.764 | L50: 76.264 | M50: 5 | N50: 是
A51: 47 | B51: 城区初中（含一贯制学校初中阶段） | C51: 语文教师 | D51: 6 | E51: 23040408 | F51: 2304060302104 | G51: 郑维维 | H51: 67.5 | I51: 33.75 | J51: 84.648 | K51: 42.324 | L51: 76.074 | M51: 6 | N51: 是
A52: 51 | B52: 城区初中（含一贯制学校初中阶段） | C52: 语文教师 | D52: 6 | E52: 23040408 | F52: 2304060303116 | G52: 文煜晨 | H52: 65.75 | I52: 32.875 | J52: 84.984 | K52: 42.492 | L52: 75.367 | M52: 7 | N52: 否
A53: 50 | B53: 城区初中（含一贯制学校初中阶段） | C53: 语文教师 | D53: 6 | E53: 23040408 | F53: 2304060300517 | G53: 邓南 | H53: 66 | I53: 33 | J53: 83.73 | K53: 41.865 | L53: 74.865 | M53: 8 | N53: 否
A54: 53 | B54: 城区初中（含一贯制学校初中阶段） | C54: 语文教师 | D54: 6 | E54: 23040408 | F54: 2304060400420 | G54: 陈嘉璐 | H54: 65.25 | I54: 32.625 | J54: 84.364 | K54: 42.182 | L54: 74.807 | M54: 9 | N54: 否
A55: 48 | B55: 城区初中（含一贯制学校初中阶段） | C55: 语文教师 | D55: 6 | E55: 23040408 | F55: 2304060301127 | G55: 贾欣怡 | H55: 67.25 | I55: 33.625 | J55: 82.2 | K55: 41.1 | L55: 74.725 | M55: 10 | N55: 否
A56: 55 | B56: 城区初中（含一贯制学校初中阶段） | C56: 语文教师 | D56: 6 | E56: 23040408 | F56: 2304060300702 | G56: 陈晨 | H56: 64.75 | I56: 32.375 | J56: 82.86 | K56: 41.43 | L56: 73.805 | M56: 11 | N56: 否
A57: 54 | B57: 城区初中（含一贯制学校初中阶段） | C57: 语文教师 | D57: 6 | E57: 23040408 | F57: 2304060400615 | G57: 曾欣悦 | H57: 65 | I57: 32.5 | J57: 81.77 | K57: 40.885 | L57: 73.385 | M57: 12 | N57: 否
A58: 61 | B58: 城区初中（含一贯制学校初中阶段） | C58: 语文教师 | D58: 6 | E58: 23040408 | F58: 2304060301717 | G58: 刘宇秦 | H58: 63.5 | I58: 31.75 | J58: 83.234 | K58: 41.617 | L58: 73.367 | M58: 13 | N58: 否
A59: 57 | B59: 城区初中（含一贯制学校初中阶段） | C59: 语文教师 | D59: 6 | E59: 23040408 | F59: 2304060401305 | G59: 苟茜 | H59: 64.75 | I59: 32.375 | J59: 81.926 | K59: 40.963 | L59: 73.338 | M59: 14 | N59: 否
A60: 58 | B60: 城区初中（含一贯制学校初中阶段） | C60: 语文教师 | D60: 6 | E60: 23040408 | F60: 2304060400712 | G60: 马萍萍 | H60: 64.25 | I60: 32.125 | J60: 81.71 | K60: 40.855 | L60: 72.98 | M60: 15 | N60: 否
A61: 56 | B61: 城区初中（含一贯制学校初中阶段） | C61: 语文教师 | D61: 6 | E61: 23040408 | F61: 2304060301014 | G61: 陈艳 | H61: 64.75 | I61: 32.375 | J61: 80.544 | K61: 40.272 | L61: 72.647 | M61: 16 | N61: 否
A62: 52 | B62: 城区初中（含一贯制学校初中阶段） | C62: 语文教师 | D62: 6 | E62: 23040408 | F62: 2304060400814 | G62: 林湍荫 | H62: 65.5 | I62: 32.75 | J62: 79.386 | K62: 39.693 | L62: 72.443 | M62: 17 | N62: 否
A63: 60 | B63: 城区初中（含一贯制学校初中阶段） | C63: 语文教师 | D63: 6 | E63: 23040408 | F63: 2304060301408 | G63: 王翌帆 | H63: 63.5 | I63: 31.75 | J63: 77.868 | K63: 38.934 | L63: 70.684 | M63: 18 | N63: 否
A64: 59 | B64: 城区初中（含一贯制学校初中阶段） | C64: 语文教师 | D64: 6 | E64: 23040408 | F64: 2304060301309 | G64: 叶敏 | H64: 63.5 | I64: 31.75 | J64: 0 | K64: 0 | L64: 31.75 | M64: 19 | N64: 否 | O64: 缺考
A65: 62 | B65: 城区初中（含一贯制学校初中阶段） | C65: 数学教师 | D65: 4 | E65: 23040409 | F65: 2304060301904 | G65: 吴忠远 | H65: 71.75 | I65: 35.875 | J65: 79.316 | K65: 39.658 | L65: 75.533 | M65: 1 | N65: 是
A66: 68 | B66: 城区初中（含一贯制学校初中阶段） | C66: 数学教师 | D66: 4 | E66: 23040409 | F66: 2304060301111 | G66: 何俞萱 | H66: 65 | I66: 32.5 | J66: 82.318 | K66: 41.159 | L66: 73.659 | M66: 2 | N66: 是
A67: 64 | B67: 城区初中（含一贯制学校初中阶段） | C67: 数学教师 | D67: 4 | E67: 23040409 | F67: 2304060302401 | G67: 李佳 | H67: 68.25 | I67: 34.125 | J67: 78.344 | K67: 39.172 | L67: 73.297 | M67: 3 | N67: 是
A68: 63 | B68: 城区初中（含一贯制学校初中阶段） | C68: 数学教师 | D68: 4 | E68: 23040409 | F68: 2304060302705 | G68: 陈美怡 | H68: 69.5 | I68: 34.75 | J68: 76.456 | K68: =J68*0.5 -> 38.228 | L68: =K68+I68 -> 72.978 | M68: 4 | N68: 是
A69: 66 | B69: 城区初中（含一贯制学校初中阶段） | C69: 数学教师 | D69: 4 | E69: 23040409 | F69: 2304060302804 | G69: 邓敏 | H69: 65.25 | I69: 32.625 | J69: 80.332 | K69: 40.166 | L69: 72.791 | M69: 5 | N69: 否
A70: 67 | B70: 城区初中（含一贯制学校初中阶段） | C70: 数学教师 | D70: 4 | E70: 23040409 | F70: 2304060303106 | G70: 何启伟 | H70: 65.25 | I70: 32.625 | J70: 79.886 | K70: 39.943 | L70: 72.568 | M70: 6 | N70: 否
A71: 70 | B71: 城区初中（含一贯制学校初中阶段） | C71: 数学教师 | D71: 4 | E71: 23040409 | F71: 2304060302924 | G71: 洪芷妤 | H71: 62.25 | I71: 31.125 | J71: 80.902 | K71: 40.451 | L71: 71.576 | M71: 7 | N71: 否
A72: 69 | B72: 城区初中（含一贯制学校初中阶段） | C72: 数学教师 | D72: 4 | E72: 23040409 | F72: 2304060303122 | G72: 缪欣雨 | H72: 63.75 | I72: 31.875 | J72: 78.362 | K72: 39.181 | L72: 71.056 | M72: 8 | N72: 否
A73: 65 | B73: 城区初中（含一贯制学校初中阶段） | C73: 数学教师 | D73: 4 | E73: 23040409 | F73: 2304060401313 | G73: 蒋方怡 | H73: 65.5 | I73: 32.75 | J73: 76 | K73: 38 | L73: 70.75 | M73: 9 | N73: 否
A74: 72 | B74: 城区初中（含一贯制学校初中阶段） | C74: 数学教师 | D74: 4 | E74: 23040409 | F74: 2304060400223 | G74: 王蔚霖 | H74: 60.75 | I74: 30.375 | J74: 76.024 | K74: 38.012 | L74: 68.387 | M74: 10 | N74: 否
A75: 71 | B75: 城区初中（含一贯制学校初中阶段） | C75: 数学教师 | D75: 4 | E75: 23040409 | F75: 2304060302423 | G75: 王婷 | H75: 61.75 | I75: 30.875 | J75: 0 | K75: 0 | L75: 30.875 | M75: 11 | N75: 否 | O75: 放弃面试
A76: 73 | B76: 城区初中（含一贯制学校初中阶段） | C76: 英语教师 | D76: 3 | E76: 23040410 | F76: 2304060303304 | G76: 曹虹 | H76: 74 | I76: 37 | J76: 85.386 | K76: 42.693 | L76: 79.693 | M76: 1 | N76: 是
A77: 77 | B77: 城区初中（含一贯制学校初中阶段） | C77: 英语教师 | D77: 3 | E77: 23040410 | F77: 2304060303628 | G77: 雍苹 | H77: 69.75 | I77: 34.875 | J77: 85.036 | K77: 42.518 | L77: 77.393 | M77: 2 | N77: 是
A78: 78 | B78: 城区初中（含一贯制学校初中阶段） | C78: 英语教师 | D78: 3 | E78: 23040410 | F78: 2304060302712 | G78: 曹紫芸 | H78: 69.5 | I78: 34.75 | J78: 84.034 | K78: 42.017 | L78: 76.767 | M78: 3 | N78: 是
A79: 74 | B79: 城区初中（含一贯制学校初中阶段） | C79: 英语教师 | D79: 3 | E79: 23040410 | F79: 2304060301609 | G79: 刘艳伶 | H79: 72.25 | I79: 36.125 | J79: 79.848 | K79: 39.924 | L79: 76.049 | M79: 4 | N79: 否
A80: 75 | B80: 城区初中（含一贯制学校初中阶段） | C80: 英语教师 | D80: 3 | E80: 23040410 | F80: 2304060400905 | G80: 林正龙 | H80: 70.75 | I80: 35.375 | J80: 80.928 | K80: 40.464 | L80: 75.839 | M80: 5 | N80: 否
A81: 79 | B81: 城区初中（含一贯制学校初中阶段） | C81: 英语教师 | D81: 3 | E81: 23040410 | F81: 2304060301811 | G81: 范小燕 | H81: 69 | I81: 34.5 | J81: 82.204 | K81: 41.102 | L81: 75.602 | M81: 6 | N81: 否
A82: 80 | B82: 城区初中（含一贯制学校初中阶段） | C82: 英语教师 | D82: 3 | E82: 23040410 | F82: 2304060401214 | G82: 刘蕾 | H82: 68.75 | I82: 34.375 | J82: 80.526 | K82: 40.263 | L82: 74.638 | M82: 7 | N82: 否
A83: 76 | B83: 城区初中（含一贯制学校初中阶段） | C83: 英语教师 | D83: 3 | E83: 23040410 | F83: 2304060301212 | G83: 付佳灵 | H83: 70.25 | I83: 35.125 | J83: 78.518 | K83: 39.259 | L83: 74.384 | M83: 8 | N83: 否
A84: 81 | B84: 城区初中（含一贯制学校初中阶段） | C84: 英语教师 | D84: 3 | E84: 23040410 | F84: 2304060400818 | G84: 黄雨琴 | H84: 68.5 | I84: 34.25 | J84: 79.9 | K84: 39.95 | L84: 74.2 | M84: 9 | N84: 否
A85: 82 | B85: 城区初中（含一贯制学校初中阶段） | C85: 物理教师 | D85: 4 | E85: 23040411 | F85: 2304060400817 | G85: 陈玉婕 | H85: 72 | I85: 36 | J85: 87.366 | K85: 43.683 | L85: 79.683 | M85: 1 | N85: 是
A86: 83 | B86: 城区初中（含一贯制学校初中阶段） | C86: 物理教师 | D86: 4 | E86: 23040411 | F86: 2304060301113 | G86: 樊桉成 | H86: 70 | I86: 35 | J86: 83.686 | K86: 41.843 | L86: 76.843 | M86: 2 | N86: 是
A87: 84 | B87: 城区初中（含一贯制学校初中阶段） | C87: 物理教师 | D87: 4 | E87: 23040411 | F87: 2304060301727 | G87: 刘亨鹏 | H87: 67.5 | I87: 33.75 | J87: 85.522 | K87: 42.761 | L87: 76.511 | M87: 3 | N87: 是
A88: 88 | B88: 城区初中（含一贯制学校初中阶段） | C88: 物理教师 | D88: 4 | E88: 23040411 | F88: 2304060301206 | G88: 陈键 | H88: 66.25 | I88: 33.125 | J88: 84.216 | K88: 42.108 | L88: 75.233 | M88: 4 | N88: 是
A89: 85 | B89: 城区初中（含一贯制学校初中阶段） | C89: 物理教师 | D89: 4 | E89: 23040411 | F89: 2304060401210 | G89: 许钟 | H89: 67.5 | I89: 33.75 | J89: 82.614 | K89: 41.307 | L89: 75.057 | M89: 5 | N89: 否
A90: 90 | B90: 城区初中（含一贯制学校初中阶段） | C90: 物理教师 | D90: 4 | E90: 23040411 | F90: 2304060400906 | G90: 王婷婷 | H90: 63.75 | I90: 31.875 | J90: 86.196 | K90: 43.098 | L90: 74.973 | M90: 6 | N90: 否
A91: 87 | B91: 城区初中（含一贯制学校初中阶段） | C91: 物理教师 | D91: 4 | E91: 23040411 | F91: 2304060302323 | G91: 李倩 | H91: 67 | I91: 33.5 | J91: 81.246 | K91: 40.623 | L91: 74.123 | M91: 7 | N91: 否
A92: 86 | B92: 城区初中（含一贯制学校初中阶段） | C92: 物理教师 | D92: 4 | E92: 23040411 | F92: 2304060303014 | G92: 郑博 | H92: 67.5 | I92: 33.75 | J92: 79.39 | K92: 39.695 | L92: 73.445 | M92: 8 | N92: 否
A93: 91 | B93: 城区初中（含一贯制学校初中阶段） | C93: 物理教师 | D93: 4 | E93: 23040411 | F93: 2304060300612 | G93: 李波 | H93: 62.75 | I93: 31.375 | J93: 82.21 | K93: 41.105 | L93: 72.48 | M93: 9 | N93: 否
A94: 89 | B94: 城区初中（含一贯制学校初中阶段） | C94: 物理教师 | D94: 4 | E94: 23040411 | F94: 2304060303114 | G94: 庞坤 | H94: 66 | I94: 33 | J94: 78.39 | K94: 39.195 | L94: 72.195 | M94: 10 | N94: 否
A95: 92 | B95: 城区初中（含一贯制学校初中阶段） | C95: 物理教师 | D95: 4 | E95: 23040411 | F95: 2304060300514 | G95: 李静平 | H95: 61.75 | I95: 30.875 | J95: 80.206 | K95: 40.103 | L95: 70.978 | M95: 11 | N95: 否
A96: 93 | B96: 城区初中（含一贯制学校初中阶段） | C96: 物理教师 | D96: 4 | E96: 23040411 | F96: 2304060400809 | G96: 邓洁 | H96: 61.75 | I96: 30.875 | J96: 75.92 | K96: 37.96 | L96: 68.835 | M96: 12 | N96: 否
A97: 94 | B97: 城区初中（含一贯制学校初中阶段） | C97: 化学教师 | D97: 1 | E97: 23040412 | F97: 2304060400312 | G97: 李小根 | H97: 77 | I97: 38.5 | J97: 84.856 | K97: 42.428 | L97: 80.928 | M97: 1 | N97: 是
A98: 95 | B98: 城区初中（含一贯制学校初中阶段） | C98: 化学教师 | D98: 1 | E98: 23040412 | F98: 2304060401308 | G98: 王思涵 | H98: 73.75 | I98: 36.875 | J98: 85.276 | K98: 42.638 | L98: 79.513 | M98: 2 | N98: 否
A99: 96 | B99: 城区初中（含一贯制学校初中阶段） | C99: 化学教师 | D99: 1 | E99: 23040412 | F99: 2304060303130 | G99: 曹维 | H99: 70.25 | I99: 35.125 | J99: 82.364 | K99: 41.182 | L99: 76.307 | M99: 3 | N99: 否
A100: 97 | B100: 城区初中（含一贯制学校初中阶段） | C100: 历史教师 | D100: 1 | E100: 23040413 | F100: 2304060302229 | G100: 刘菊岚 | H100: 67 | I100: 33.5 | J100: 86.56 | K100: 43.28 | L100: 76.78 | M100: 1 | N100: 是
A101: 100 | B101: 城区初中（含一贯制学校初中阶段） | C101: 历史教师 | D101: 1 | E101: 23040413 | F101: 2304060302909 | G101: 胡鑫 | H101: 62.5 | I101: 31.25 | J101: 87.43 | K101: 43.715 | L101: 74.965 | M101: 2 | N101: 否
A102: 98 | B102: 城区初中（含一贯制学校初中阶段） | C102: 历史教师 | D102: 1 | E102: 23040413 | F102: 2304060301806 | G102: 鲁欣牧 | H102: 64.75 | I102: 32.375 | J102: 82.686 | K102: 41.343 | L102: 73.718 | M102: 3 | N102: 否
A103: 99 | B103: 城区初中（含一贯制学校初中阶段） | C103: 历史教师 | D103: 1 | E103: 23040413 | F103: 2304060302201 | G103: 刘小渝 | H103: 62.5 | I103: 31.25 | J103: 84.54 | K103: 42.27 | L103: 73.52 | M103: 4 | N103: 否
A104: 101 | B104: 城区初中（含一贯制学校初中阶段） | C104: 音乐教师 | D104: 1 | E104: 23040414 | F104: 2304060303513 | G104: 赵王结薇 | H104: 58.75 | I104: 29.375 | J104: 80.538 | K104: 40.269 | L104: 69.644 | M104: 1 | N104: 是
A105: 103 | B105: 城区初中（含一贯制学校初中阶段） | C105: 音乐教师 | D105: 1 | E105: 23040414 | F105: 2304060301218 | G105: 纪亮 | H105: 57.5 | I105: 28.75 | J105: 78.272 | K105: 39.136 | L105: 67.886 | M105: 2 | N105: 否
A106: 102 | B106: 城区初中（含一贯制学校初中阶段） | C106: 音乐教师 | D106: 1 | E106: 23040414 | F106: 2304060301622 | G106: 邹涛 | H106: 58 | I106: 29 | J106: 74.24 | K106: 37.12 | L106: 66.12 | M106: 3 | N106: 否
A107: 104 | B107: 城区初中（含一贯制学校初中阶段） | C107: 体育教师 | D107: 2 | E107: 23040415 | F107: 2304060301109 | G107: 刘旭泽 | H107: 66.5 | I107: 33.25 | J107: 90.066 | K107: 45.033 | L107: 78.283 | M107: 1 | N107: 是
A108: 106 | B108: 城区初中（含一贯制学校初中阶段） | C108: 体育教师 | D108: 2 | E108: 23040415 | F108: 2304060300722 | G108: 刘国志 | H108: 65 | I108: 32.5 | J108: 85.83 | K108: 42.915 | L108: 75.415 | M108: 2 | N108: 是
A109: 108 | B109: 城区初中（含一贯制学校初中阶段） | C109: 体育教师 | D109: 2 | E109: 23040415 | F109: 2304060401012 | G109: 刘俊宏 | H109: 62.5 | I109: 31.25 | J109: 86.786 | K109: 43.393 | L109: 74.643 | M109: 3 | N109: 否
A110: 105 | B110: 城区初中（含一贯制学校初中阶段） | C110: 体育教师 | D110: 2 | E110: 23040415 | F110: 2304060300719 | G110: 杨浩林 | H110: 65.25 | I110: 32.625 | J110: 81.916 | K110: 40.958 | L110: 73.583 | M110: 4 | N110: 否
A111: 107 | B111: 城区初中（含一贯制学校初中阶段） | C111: 体育教师 | D111: 2 | E111: 23040415 | F111: 2304060302826 | G111: 蒋翔 | H111: 64.25 | I111: 32.125 | J111: 80.692 | K111: 40.346 | L111: 72.471 | M111: 5 | N111: 否
A112: 109 | B112: 城区初中（含一贯制学校初中阶段） | C112: 体育教师 | D112: 2 | E112: 23040415 | F112: 2304060301402 | G112: 王茜 | H112: 60.25 | I112: 30.125 | J112: 80.354 | K112: 40.177 | L112: 70.302 | M112: 6 | N112: 否
A113: 110 | B113: 城区小学 | C113: 语文教师 | D113: 8 | E113: 23040416 | F113: 2304060301823 | G113: 刘瑶 | H113: 74 | I113: 37 | J113: 90.352 | K113: 45.176 | L113: 82.176 | M113: 1 | N113: 是
A114: 111 | B114: 城区小学 | C114: 语文教师 | D114: 8 | E114: 23040416 | F114: 2304060401303 | G114: 罗一涵 | H114: 72.75 | I114: 36.375 | J114: 90.13 | K114: 45.065 | L114: 81.44 | M114: 2 | N114: 是
A115: 116 | B115: 城区小学 | C115: 语文教师 | D115: 8 | E115: 23040416 | F115: 2304060301814 | G115: 黄欣蓉 | H115: 67.25 | I115: 33.625 | J115: 86.592 | K115: 43.296 | L115: 76.921 | M115: 3 | N115: 是
A116: 118 | B116: 城区小学 | C116: 语文教师 | D116: 8 | E116: 23040416 | F116: 2304060301003 | G116: 何承遥 | H116: 65.75 | I116: 32.875 | J116: 87.448 | K116: 43.724 | L116: 76.599 | M116: 4 | N116: 是
A117: 115 | B117: 城区小学 | C117: 语文教师 | D117: 8 | E117: 23040416 | F117: 2304060400212 | G117: 杨芩 | H117: 67.75 | I117: 33.875 | J117: 84.714 | K117: 42.357 | L117: 76.232 | M117: 5 | N117: 是
A118: 117 | B118: 城区小学 | C118: 语文教师 | D118: 8 | E118: 23040416 | F118: 2304060301830 | G118: 练宇杰 | H118: 66.25 | I118: 33.125 | J118: 85.344 | K118: 42.672 | L118: 75.797 | M118: 6 | N118: 是
A119: 112 | B119: 城区小学 | C119: 语文教师 | D119: 8 | E119: 23040416 | F119: 2304060302302 | G119: 易思巧 | H119: 69.5 | I119: 34.75 | J119: 81.976 | K119: 40.988 | L119: 75.738 | M119: 7 | N119: 是
A120: 121 | B120: 城区小学 | C120: 语文教师 | D120: 8 | E120: 23040416 | F120: 2304060303325 | G120: 彭迪 | H120: 65.25 | I120: 32.625 | J120: 86.206 | K120: 43.103 | L120: 75.728 | M120: 8 | N120: 是
A121: 119 | B121: 城区小学 | C121: 语文教师 | D121: 8 | E121: 23040416 | F121: 2304060302412 | G121: 陈佳君 | H121: 65.5 | I121: 32.75 | J121: 85.924 | K121: 42.962 | L121: 75.712 | M121: 9 | N121: 否
A122: 113 | B122: 城区小学 | C122: 语文教师 | D122: 8 | E122: 23040416 | F122: 2304060302820 | G122: 雷小勤 | H122: 68 | I122: 34 | J122: 83.11 | K122: 41.555 | L122: 75.555 | M122: 10 | N122: 否
A123: 124 | B123: 城区小学 | C123: 语文教师 | D123: 8 | E123: 23040416 | F123: 2304060301512 | G123: 邓华 | H123: 64.25 | I123: 32.125 | J123: 86.472 | K123: 43.236 | L123: 75.361 | M123: 11 | N123: 否
A124: 114 | B124: 城区小学 | C124: 语文教师 | D124: 8 | E124: 23040416 | F124: 2304060303601 | G124: 李承宏 | H124: 67.75 | I124: 33.875 | J124: 82.182 | K124: 41.091 | L124: 74.966 | M124: 12 | N124: 否
A125: 120 | B125: 城区小学 | C125: 语文教师 | D125: 8 | E125: 23040416 | F125: 2304060302627 | G125: 蒋文芳 | H125: 65.5 | I125: 32.75 | J125: 84.264 | K125: 42.132 | L125: 74.882 | M125: 13 | N125: 否
A126: 128 | B126: 城区小学 | C126: 语文教师 | D126: 8 | E126: 23040416 | F126: 2304060400610 | G126: 刘建蓉 | H126: 62.25 | I126: 31.125 | J126: 87.456 | K126: 43.728 | L126: 74.853 | M126: 14 | N126: 否
A127: 122 | B127: 城区小学 | C127: 语文教师 | D127: 8 | E127: 23040416 | F127: 2304060300717 | G127: 董洁珍 | H127: 64.75 | I127: 32.375 | J127: 84.49 | K127: 42.245 | L127: 74.62 | M127: 15 | N127: 否
A128: 126 | B128: 城区小学 | C128: 语文教师 | D128: 8 | E128: 23040416 | F128: 2304060303021 | G128: 张兴嫄 | H128: 63.25 | I128: 31.625 | J128: 85.092 | K128: 42.546 | L128: 74.171 | M128: 16 | N128: 否
A129: 123 | B129: 城区小学 | C129: 语文教师 | D129: 8 | E129: 23040416 | F129: 2304060400620 | G129: 唐艺萍 | H129: 64.5 | I129: 32.25 | J129: 82.81 | K129: 41.405 | L129: 73.655 | M129: 17 | N129: 否
A130: 127 | B130: 城区小学 | C130: 语文教师 | D130: 8 | E130: 23040416 | F130: 2304060303005 | G130: 邓雪娇 | H130: 62.5 | I130: 31.25 | J130: 83.448 | K130: 41.724 | L130: 72.974 | M130: 18 | N130: 否
A131: 125 | B131: 城区小学 | C131: 语文教师 | D131: 8 | E131: 23040416 | F131: 2304060302115 | G131: 陈兴萍 | H131: 63.25 | I131: 31.625 | J131: 82.588 | K131: 41.294 | L131: 72.919 | M131: 19 | N131: 否
A132: 133 | B132: 城区小学 | C132: 语文教师 | D132: 8 | E132: 23040416 | F132: 2304060400106 | G132: 何宇航 | H132: 60.25 | I132: 30.125 | J132: 85.53 | K132: =J132*0.5 -> 42.765 | L132: =K132+I132 -> 72.89 | M132: 20 | N132: 否 | O132: 递补
A133: 130 | B133: 城区小学 | C133: 语文教师 | D133: 8 | E133: 23040416 | F133: 2304060300926 | G133: 胡怡 | H133: 61 | I133: 30.5 | J133: 84.67 | K133: 42.335 | L133: 72.835 | M133: 21 | N133: 否
A134: 129 | B134: 城区小学 | C134: 语文教师 | D134: 8 | E134: 23040416 | F134: 2304060401022 | G134: 王萌 | H134: 62 | I134: 31 | J134: 82.63 | K134: 41.315 | L134: 72.315 | M134: 22 | N134: 否
A135: 131 | B135: 城区小学 | C135: 语文教师 | D135: 8 | E135: 23040416 | F135: 2304060401024 | G135: 孙雪萍 | H135: 60.75 | I135: 30.375 | J135: 82.37 | K135: 41.185 | L135: 71.56 | M135: 23 | N135: 否
A136: 132 | B136: 城区小学 | C136: 语文教师 | D136: 8 | E136: 23040416 | F136: 2304060401023 | G136: 熊雪晴 | H136: 60.5 | I136: 30.25 | J136: 82.336 | K136: 41.168 | L136: 71.418 | M136: 24 | N136: 否
A137: 137 | B137: 城区小学 | C137: 数学教师 | D137: 5 | E137: 23040417 | F137: 2304060303101 | G137: 彭章秀 | H137: 69 | I137: 34.5 | J137: 84.112 | K137: 42.056 | L137: 76.556 | M137: 1 | N137: 是
A138: 135 | B138: 城区小学 | C138: 数学教师 | D138: 5 | E138: 23040417 | F138: 2304060400601 | G138: 杨彩琳 | H138: 69.75 | I138: 34.875 | J138: 82.446 | K138: 41.223 | L138: 76.098 | M138: 2 | N138: 是
A139: 134 | B139: 城区小学 | C139: 数学教师 | D139: 5 | E139: 23040417 | F139: 2304060302204 | G139: 陈湘 | H139: 70.5 | I139: 35.25 | J139: 81.236 | K139: 40.618 | L139: 75.868 | M139: 3 | N139: 是
A140: 136 | B140: 城区小学 | C140: 数学教师 | D140: 5 | E140: 23040417 | F140: 2304060302708 | G140: 魏子涵 | H140: 69.5 | I140: 34.75 | J140: 81.322 | K140: 40.661 | L140: 75.411 | M140: 4 | N140: 是
A141: 139 | B141: 城区小学 | C141: 数学教师 | D141: 5 | E141: 23040417 | F141: 2304060400108 | G141: 李青峪 | H141: 67.5 | I141: 33.75 | J141: 83.312 | K141: 41.656 | L141: 75.406 | M141: 5 | N141: 是
A142: 138 | B142: 城区小学 | C142: 数学教师 | D142: 5 | E142: 23040417 | F142: 2304060301701 | G142: 谢煜 | H142: 68.75 | I142: 34.375 | J142: 80.226 | K142: 40.113 | L142: 74.488 | M142: 6 | N142: 否
A143: 143 | B143: 城区小学 | C143: 数学教师 | D143: 5 | E143: 23040417 | F143: 2304060302217 | G143: 许胜雨 | H143: 64 | I143: 32 | J143: 83.52 | K143: 41.76 | L143: 73.76 | M143: 7 | N143: 否
A144: 140 | B144: 城区小学 | C144: 数学教师 | D144: 5 | E144: 23040417 | F144: 2304060303201 | G144: 成静 | H144: 67 | I144: 33.5 | J144: 74.83 | K144: 37.415 | L144: 70.915 | M144: 8 | N144: 否
A145: 144 | B145: 城区小学 | C145: 数学教师 | D145: 5 | E145: 23040417 | F145: 2304060300523 | G145: 周倩 | H145: 62.75 | I145: 31.375 | J145: 78.484 | K145: 39.242 | L145: 70.617 | M145: 9 | N145: 否
A146: 145 | B146: 城区小学 | C146: 数学教师 | D146: 5 | E146: 23040417 | F146: 2304060302907 | G146: 刘平 | H146: 62.75 | I146: 31.375 | J146: 78.376 | K146: 39.188 | L146: 70.563 | M146: 10 | N146: 否
A147: 146 | B147: 城区小学 | C147: 数学教师 | D147: 5 | E147: 23040417 | F147: 2304060303209 | G147: 黄丽萍 | H147: 62.25 | I147: 31.125 | J147: 78.822 | K147: 39.411 | L147: 70.536 | M147: 11 | N147: 否
A148: 148 | B148: 城区小学 | C148: 数学教师 | D148: 5 | E148: 23040417 | F148: 2304060400409 | G148: 张祖鸿 | H148: 60.25 | I148: 30.125 | J148: 78.212 | K148: 39.106 | L148: 69.231 | M148: 12 | N148: 否 | O148: 递补
A149: 147 | B149: 城区小学 | C149: 数学教师 | D149: 5 | E149: 23040417 | F149: 2304060301008 | G149: 王立 | H149: 61 | I149: 30.5 | J149: 77.166 | K149: 38.583 | L149: 69.083 | M149: 13 | N149: 否
A150: 141 | B150: 城区小学 | C150: 数学教师 | D150: 5 | E150: 23040417 | F150: 2304060303529 | G150: 苏芮 | H150: 64.5 | I150: 32.25 | J150: 0 | K150: 0 | L150: 32.25 | M150: 14 | N150: 否 | O150: 缺考
A151: 142 | B151: 城区小学 | C151: 数学教师 | D151: 5 | E151: 23040417 | F151: 2304060303007 | G151: 谢佳怡 | H151: 64.25 | I151: 32.125 | J151: 0 | K151: 0 | L151: 32.125 | M151: 15 | N151: 否 | O151: 透露个人信息
A152: 150 | B152: 建城区小学（含一贯制学校小学阶段） | C152: 语文教师 | D152: 8 | E152: 23040418 | F152: 2304060400526 | G152: 胡新晨 | H152: 72.5 | I152: 36.25 | J152: 88.632 | K152: 44.316 | L152: 80.566 | M152: 1 | N152: 是
A153: 149 | B153: 建城区小学（含一贯制学校小学阶段） | C153: 语文教师 | D153: 8 | E153: 23040418 | F153: 2304060301511 | G153: 王静 | H153: 71.75 | I153: 37.875 | J153: 81.74 | K153: 40.87 | L153: 78.745 | M153: 2 | N153: 是
A154: 165 | B154: 建城区小学（含一贯制学校小学阶段） | C154: 语文教师 | D154: 8 | E154: 23040418 | F154: 2304060400119 | G154: 尹英 | H154: 65.5 | I154: 32.75 | J154: 90.16 | K154: 45.08 | L154: 77.83 | M154: 3 | N154: 是
A155: 153 | B155: 建城区小学（含一贯制学校小学阶段） | C155: 语文教师 | D155: 8 | E155: 23040418 | F155: 2304060302211 | G155: 徐琴 | H155: 69.25 | I155: 34.625 | J155: 85.816 | K155: 42.908 | L155: 77.533 | M155: 4 | N155: 是
A156: 151 | B156: 建城区小学（含一贯制学校小学阶段） | C156: 语文教师 | D156: 8 | E156: 23040418 | F156: 2304060301308 | G156: 王露 | H156: 70.75 | I156: 35.375 | J156: 83.942 | K156: 41.971 | L156: 77.346 | M156: 5 | N156: 是
A157: 162 | B157: 建城区小学（含一贯制学校小学阶段） | C157: 语文教师 | D157: 8 | E157: 23040418 | F157: 2304060400613 | G157: 严冰倩 | H157: 66 | I157: 33 | J157: 88.676 | K157: 44.338 | L157: 77.338 | M157: 6 | N157: 是
A158: 159 | B158: 建城区小学（含一贯制学校小学阶段） | C158: 语文教师 | D158: 8 | E158: 23040418 | F158: 2304060400414 | G158: 刘娟 | H158: 66.75 | I158: 33.375 | J158: 86.548 | K158: 43.274 | L158: 76.649 | M158: 7 | N158: 是
A159: 158 | B159: 建城区小学（含一贯制学校小学阶段） | C159: 语文教师 | D159: 8 | E159: 23040418 | F159: 2304060301011 | G159: 李春琼 | H159: 66.75 | I159: 33.375 | J159: 86.396 | K159: 43.198 | L159: 76.573 | M159: 8 | N159: 是
A160: 152 | B160: 建城区小学（含一贯制学校小学阶段） | C160: 语文教师 | D160: 8 | E160: 23040418 | F160: 2304060300827 | G160: 邵泞泞 | H160: 70.25 | I160: 35.125 | J160: 81.246 | K160: 40.623 | L160: 75.748 | M160: 9 | N160: 否
A161: 155 | B161: 建城区小学（含一贯制学校小学阶段） | C161: 语文教师 | D161: 8 | E161: 23040418 | F161: 2304060302117 | G161: 詹琳琳 | H161: 68.5 | I161: 34.25 | J161: 82.992 | K161: 41.496 | L161: 75.746 | M161: 10 | N161: 否
A162: 161 | B162: 建城区小学（含一贯制学校小学阶段） | C162: 语文教师 | D162: 8 | E162: 23040418 | F162: 2304060301810 | G162: 熊茜 | H162: 66.25 | I162: 33.125 | J162: 84.71 | K162: 42.355 | L162: 75.48 | M162: 11 | N162: 否
A163: 170 | B163: 建城区小学（含一贯制学校小学阶段） | C163: 语文教师 | D163: 8 | E163: 23040418 | F163: 2304060300914 | G163: 李丽 | H163: 64.5 | I163: 32.25 | J163: 86.25 | K163: 43.125 | L163: 75.375 | M163: 12 | N163: 否
A164: 164 | B164: 建城区小学（含一贯制学校小学阶段） | C164: 语文教师 | D164: 8 | E164: 23040418 | F164: 2304060301723 | G164: 裴鑫怡 | H164: 65.5 | I164: 32.75 | J164: 84.516 | K164: 42.258 | L164: 75.008 | M164: 13 | N164: 否
A165: 156 | B165: 建城区小学（含一贯制学校小学阶段） | C165: 语文教师 | D165: 8 | E165: 23040418 | F165: 2304060401106 | G165: 陈施睿 | H165: 67 | I165: 33.5 | J165: 82.298 | K165: 41.149 | L165: 74.649 | M165: 14 | N165: 否
A166: 157 | B166: 建城区小学（含一贯制学校小学阶段） | C166: 语文教师 | D166: 8 | E166: 23040418 | F166: 2304060300707 | G166: 郭佳佳 | H166: 66.75 | I166: 33.375 | J166: 82.482 | K166: 41.241 | L166: 74.616 | M166: 15 | N166: 否
A167: 163 | B167: 建城区小学（含一贯制学校小学阶段） | C167: 语文教师 | D167: 8 | E167: 23040418 | F167: 2304060400808 | G167: 黄天悦 | H167: 65.75 | I167: 32.875 | J167: 83.396 | K167: 41.698 | L167: 74.573 | M167: 16 | N167: 否
A168: 169 | B168: 建城区小学（含一贯制学校小学阶段） | C168: 语文教师 | D168: 8 | E168: 23040418 | F168: 2304060400316 | G168: 舒燕林 | H168: 64.75 | I168: 32.375 | J168: 83.988 | K168: 41.994 | L168: 74.369 | M168: 17 | N168: 否
A169: 166 | B169: 建城区小学（含一贯制学校小学阶段） | C169: 语文教师 | D169: 8 | E169: 23040418 | F169: 2304060302430 | G169: 李晓庚 | H169: 65.25 | I169: 32.625 | J169: 83.056 | K169: 41.528 | L169: 74.153 | M169: 18 | N169: 否
A170: 160 | B170: 建城区小学（含一贯制学校小学阶段） | C170: 语文教师 | D170: 8 | E170: 23040418 | F170: 2304060302021 | G170: 安明旺 | H170: 66.5 | I170: 33.25 | J170: 81.11 | K170: 40.555 | L170: 73.805 | M170: 19 | N170: 否
A171: 167 | B171: 建城区小学（含一贯制学校小学阶段） | C171: 语文教师 | D171: 8 | E171: 23040418 | F171: 2304060301721 | G171: 李荟玲 | H171: 64.75 | I171: 32.375 | J171: 82.672 | K171: 41.336 | L171: 73.711 | M171: 20 | N171: 否
A172: 154 | B172: 建城区小学（含一贯制学校小学阶段） | C172: 语文教师 | D172: 8 | E172: 23040418 | F172: 2304060302030 | G172: 彭钰 | H172: 69 | I172: 34.5 | J172: 76.902 | K172: 38.451 | L172: 72.951 | M172: 21 | N172: 否
A173: 168 | B173: 建城区小学（含一贯制学校小学阶段） | C173: 语文教师 | D173: 8 | E173: 23040418 | F173: 2304060301922 | G173: 杨娇娇 | H173: 64.75 | I173: 32.375 | J173: 80.854 | K173: 40.427 | L173: 72.802 | M173: 22 | N173: 否
A174: 171 | B174: 建城区小学（含一贯制学校小学阶段） | C174: 语文教师 | D174: 8 | E174: 23040418 | F174: 2304060400603 | G174: 曾红 | H174: 64 | I174: 32 | J174: 70.13 | K174: 35.065 | L174: 67.065 | M174: 23 | N174: 否
A175: 174 | B175: 建城区小学（含一贯制学校小学阶段） | C175: 数学教师 | D175: 5 | E175: 23040419 | F175: 2304060303224 | G175: 张诗琦 | H175: 67.25 | I175: 33.625 | J175: 83.124 | K175: 41.562 | L175: 75.187 | M175: 1 | N175: 是
A176: 173 | B176: 建城区小学（含一贯制学校小学阶段） | C176: 数学教师 | D176: 5 | E176: 23040419 | F176: 2304060301516 | G176: 樊珂诺 | H176: 68.75 | I176: 34.375 | J176: 79.32 | K176: 39.66 | L176: 74.035 | M176: 2 | N176: 是
A177: 172 | B177: 建城区小学（含一贯制学校小学阶段） | C177: 数学教师 | D177: 5 | E177: 23040419 | F177: 2304060302105 | G177: 李璧伶 | H177: 71.25 | I177: 35.625 | J177: 76.522 | K177: 38.261 | L177: 73.886 | M177: 3 | N177: 是
A178: 175 | B178: 建城区小学（含一贯制学校小学阶段） | C178: 数学教师 | D178: 5 | E178: 23040419 | F178: 2304060400630 | G178: 邓国欢 | H178: 64 | I178: 32 | J178: 81.77 | K178: 40.885 | L178: 72.885 | M178: 4 | N178: 是
A179: 176 | B179: 建城区小学（含一贯制学校小学阶段） | C179: 数学教师 | D179: 5 | E179: 23040419 | F179: 2304060301428 | G179: 蒋雪莲 | H179: 62 | I179: 31 | J179: 81.544 | K179: 40.772 | L179: 71.772 | M179: 5 | N179: 是
A180: 180 | B180: 建城区小学（含一贯制学校小学阶段） | C180: 数学教师 | D180: 5 | E180: 23040419 | F180: 2304060400110 | G180: 陶利平 | H180: 59 | I180: 29.5 | J180: 80.848 | K180: 40.424 | L180: 69.924 | M180: 6 | N180: 否
A181: 184 | B181: 建城区小学（含一贯制学校小学阶段） | C181: 数学教师 | D181: 5 | E181: 23040419 | F181: 2304060301330 | G181: 赵雅茹 | H181: 55.75 | I181: 27.875 | J181: 83.606 | K181: 41.803 | L181: 69.678 | M181: 7 | N181: 否
A182: 179 | B182: 建城区小学（含一贯制学校小学阶段） | C182: 数学教师 | D182: 5 | E182: 23040419 | F182: 2304060302502 | G182: 孔祥雯 | H182: 59 | I182: 29.5 | J182: 79.986 | K182: 39.993 | L182: 69.493 | M182: 8 | N182: 否
A183: 182 | B183: 建城区小学（含一贯制学校小学阶段） | C183: 数学教师 | D183: 5 | E183: 23040419 | F183: 2304060400521 | G183: 李欣 | H183: 57 | I183: 28.5 | J183: 79.32 | K183: 39.66 | L183: 68.16 | M183: 9 | N183: 否
A184: 178 | B184: 建城区小学（含一贯制学校小学阶段） | C184: 数学教师 | D184: 5 | E184: 23040419 | F184: 2304060400319 | G184: 杨雨蝶 | H184: 59.5 | I184: 29.75 | J184: 75.242 | K184: 37.621 | L184: 67.371 | M184: 10 | N184: 否
A185: 181 | B185: 建城区小学（含一贯制学校小学阶段） | C185: 数学教师 | D185: 5 | E185: 23040419 | F185: 2304060302628 | G185: 李萍 | H185: 58.75 | I185: 29.375 | J185: 75.29 | K185: 37.645 | L185: 67.02 | M185: 11 | N185: 否
A186: 183 | B186: 建城区小学（含一贯制学校小学阶段） | C186: 数学教师 | D186: 5 | E186: 23040419 | F186: 2304060300714 | G186: 王霞 | H186: 56 | I186: 28 | J186: 77.644 | K186: 38.822 | L186: 66.822 | M186: 12 | N186: 否
A187: 177 | B187: 建城区小学（含一贯制学校小学阶段） | C187: 数学教师 | D187: 5 | E187: 23040419 | F187: 2304060400305 | G187: 张霞 | H187: 60 | I187: 30 | J187: 72.074 | K187: 36.037 | L187: 66.037 | M187: 13 | N187: 否
A188: 185 | B188: 城区小学（含一贯制学校小学阶段） | C188: 英语教师 | D188: 1 | E188: 23040420 | F188: 2304060400120 | G188: 李倩茹 | H188: 76.5 | I188: 38.25 | J188: 86.93 | K188: 43.465 | L188: 81.715 | M188: 1 | N188: 是
A189: 187 | B189: 城区小学（含一贯制学校小学阶段） | C189: 英语教师 | D189: 1 | E189: 23040420 | F189: 2304060400916 | G189: 田原 | H189: 74.25 | I189: 37.125 | J189: 86.312 | K189: 43.156 | L189: 80.281 | M189: 2 | N189: 否
A190: 186 | B190: 城区小学（含一贯制学校小学阶段） | C190: 英语教师 | D190: 1 | E190: 23040420 | F190: 2304060300729 | G190: 陈俊宇 | H190: 75 | I190: 37.5 | J190: 85.418 | K190: 42.709 | L190: 80.209 | M190: 3 | N190: 否
A191: 189 | B191: 城区小学（含一贯制学校小学阶段） | C191: 科学教师 | D191: 3 | E191: 23040421 | F191: 2304060302422 | G191: 田恬 | H191: 65.75 | I191: 32.875 | J191: 85.786 | K191: 42.893 | L191: 75.768 | M191: 1 | N191: 是
A192: 190 | B192: 城区小学（含一贯制学校小学阶段） | C192: 科学教师 | D192: 3 | E192: 23040421 | F192: 2304060302926 | G192: 陈红羽 | H192: 65.75 | I192: 32.875 | J192: 82.914 | K192: 41.457 | L192: 74.332 | M192: 2 | N192: 是
A193: 188 | B193: 城区小学（含一贯制学校小学阶段） | C193: 科学教师 | D193: 3 | E193: 23040421 | F193: 2304060401218 | G193: 钟佳佳 | H193: 66.5 | I193: 33.25 | J193: 81.204 | K193: 40.602 | L193: 73.852 | M193: 3 | N193: 是
A194: 192 | B194: 城区小学（含一贯制学校小学阶段） | C194: 科学教师 | D194: 3 | E194: 23040421 | F194: 2304060301703 | G194: 王希 | H194: 60.75 | I194: 30.375 | J194: 82.406 | K194: 41.203 | L194: 71.578 | M194: 4 | N194: 否
A195: 193 | B195: 城区小学（含一贯制学校小学阶段） | C195: 科学教师 | D195: 3 | E195: 23040421 | F195: 2304060400419 | G195: 范晓芸 | H195: 60.5 | I195: 30.25 | J195: 81.826 | K195: 40.913 | L195: 71.163 | M195: 5 | N195: 否
A196: 191 | B196: 城区小学（含一贯制学校小学阶段） | C196: 科学教师 | D196: 3 | E196: 23040421 | F196: 2304060301126 | G196: 蒲小丽 | H196: 63.75 | I196: 31.875 | J196: 78.124 | K196: =J196*0.5 -> 39.062 | L196: =K196+I196 -> 70.937 | M196: 6 | N196: 否
A197: 194 | B197: 城区小学（含一贯制学校小学阶段） | C197: 科学教师 | D197: 3 | E197: 23040421 | F197: 2304060302103 | G197: 朱凌瑶 | H197: 55.75 | I197: 27.875 | J197: 0 | K197: 0 | L197: 27.875 | M197: 7 | N197: 否 | O197: 缺考
A198: 195 | B198: 城区小学（含一贯制学校小学阶段） | C198: 体育教师 | D198: 6 | E198: 23040422 | F198: 2304060302515 | G198: 胡源成 | H198: 70.25 | I198: 35.125 | J198: 88.17 | K198: 44.085 | L198: 79.21 | M198: 1 | N198: 是
A199: 196 | B199: 城区小学（含一贯制学校小学阶段） | C199: 体育教师 | D199: 6 | E199: 23040422 | F199: 2304060303204 | G199: 赖宇琦 | H199: 67.75 | I199: 33.875 | J199: 88.848 | K199: 44.424 | L199: 78.299 | M199: 2 | N199: 是
A200: 197 | B200: 城区小学（含一贯制学校小学阶段） | C200: 体育教师 | D200: 6 | E200: 23040422 | F200: 2304060300928 | G200: 陈梦 | H200: 64 | I200: 32 | J200: 89.566 | K200: 44.783 | L200: 76.783 | M200: 3 | N200: 是
... 72 more rows
